fUST/lending_fUST_20241111
["ID","MTS","AMOUNT","RATE_DAILY","PERIOD"]
[341882975,1731265851435,-1731.01,0.00026575,2]
[341882976,1731265851444,-500.0,0.00026575,2]
[341882977,1731265851453,-500.0,0.00026575,2]
[341882978,1731265851462,-500.0,0.00026575,2]
[341882979,1731265851471,-832.9,0.00026575,2]
[341882980,1731265851481,-998.14,0.00026575,2]
[341882981,1731265851490,-2001.43,0.00026575,2]
[341882982,1731265851499,-500.0,0.00026575,2]
[341882983,1731265851508,-317.23871292,0.00026575,2]
[341882984,1731265851518,-500.0,0.00026575,2]
[341882985,1731265851527,-500.0,0.00026575,2]
[341882986,1731265851539,-1489.28,0.00026575,2]
[341882987,1731265851548,-328.25,0.00026575,2]
[341882988,1731265851558,-500.0,0.00026575,2]
[341882989,1731265851568,-500.0,0.00026575,2]
[341882990,1731265851578,-500.0,0.00026575,2]
[341882991,1731265851588,-807.03,0.00026575,2]
[341882992,1731265851597,-977.78,0.00026575,2]
[341882993,1731265851607,-500.0,0.00026575,2]
[341882994,1731265851616,-500.0,0.00026575,2]
[341882995,1731265851626,-506.55,0.00026575,2]
[341882996,1731265851635,-500.0,0.00026575,2]
[341882997,1731265851645,-500.0,0.00026575,2]
[341882998,1731265851654,-1273.93,0.00026575,2]
[341882999,1731265851664,-500.0,0.00026575,2]
[341883000,1731265851674,-500.0,0.00026575,2]
[341883001,1731265851683,-2567.11,0.00026575,2]
[341883002,1731265851692,-500.0,0.00026575,2]
[341883003,1731265851701,-500.0,0.00026575,2]
[341883004,1731265851710,-977.17,0.00026575,2]
[341883005,1731265851720,-237.01184041,0.00026575,2]
[341883006,1731265851732,-2504.22,0.00026575,2]
[341883007,1731265851742,-500.0,0.00026575,2]
[341883008,1731265851751,-955.57,0.00026575,2]
[341883009,1731265851761,-500.0,0.00026575,2]
[341883010,1731265851770,-553.76,0.00026575,2]
[341883011,1731265851783,-500.0,0.00026575,2]
[341883012,1731265851792,-631.47,0.00026575,2]
[341883013,1731265851804,-1219.26,0.00026575,2]
[341883014,1731265851814,-3362.96,0.00026575,2]
[341883015,1731265851823,-1292.39,0.00026575,2]
[341883016,1731265851832,-500.0,0.00026575,2]
[341883017,1731265851841,-902.38,0.00026575,2]
[341883018,1731265851850,-500.0,0.00026575,2]
[341883019,1731265851860,-500.0,0.00026575,2]
[341883020,1731265851869,-573.32,0.00026575,2]
[341883021,1731265851878,-4064.15,0.00026575,2]
[341883022,1731265851887,-500.0,0.00026575,2]
[341883023,1731265851896,-500.0,0.00026575,2]
[341883024,1731265851905,-5741.44,0.00026575,2]
[341883025,1731265851915,-588.45,0.00026575,2]
[341883026,1731265851924,-853.21,0.00026575,2]
[341883027,1731265851933,-389.19347445,0.00026575,2]
[341883028,1731265851947,-3692.12323681,0.00026575,2]
[341883029,1731265852015,-154.0,0.00025,2]
[341883030,1731265852025,-542.88,0.00025469,3]
[341883031,1731265852036,-4323.11999994,0.00026575,2]
[341883032,1731265852047,-1678.92426793,0.00026575,2]
[341883034,1731266120485,168.555021,0.00013973,2]
[341883044,1731266473844,781.55007964,0.00022484,2]
[341883058,1731266887617,250.0,0.00022372,2]
[341883059,1731266898282,260.136458,0.00022348,2]
[341883060,1731266901929,6476.42181937,0.0002,2]
[341883061,1731266901954,742.430931,0.0002,2]
[341883062,1731266913772,1315.14818938,0.000134,2]
[341883063,1731266914238,267.60838581,0.00014114,2]
[341883064,1731266920187,91081.60826047,0.00022,30]
[341883066,1731266925246,499.999999,0.0002061,2]
[341883068,1731266939516,168.03199,0.00013973,2]
[341883122,1731267032726,-663.0526242,0.000223,2]
[341883380,1731267035879,-665.45416896,0.000223,2]
[341883382,1731267035889,-1051.2099109,0.00022504,2]
[341883384,1731267035899,-178.62592014,0.00022512,2]
[341883386,1731267035910,-2821.37407986,0.00022512,2]
[341883388,1731267035922,-162.213846,0.00022568,2]
[341883390,1731267035932,-164.713426,0.00022569,2]
[341883392,1731267035941,-708.868534,0.00022777,2]
[341883394,1731267035950,-172.403548,0.00023111,2]
[341883396,1731267035960,-593.0180989,0.00023201,2]
[341883398,1731267035969,-708.868534,0.00023462,2]
[341883400,1731267035978,-164.713426,0.00023595,2]
[341883402,1731267035987,-157.05,0.00023628,2]
[341883404,1731267035996,-300.0,0.00023637,2]
[341883406,1731267036006,-300.0,0.00023637,2]
[341883408,1731267036015,-1778.87650724,0.00023638,2]
[341883410,1731267036031,-1073.07068419,0.00023638,2]
[341883720,1731267039081,-16126.8,0.00023638,2]
[341883723,1731267039094,-5921.25280857,0.00023638,2]
[341883725,1731267039104,-3089.18425226,0.00023736,2]
[341883727,1731267039116,-184.858706,0.00023836,2]
[341883729,1731267039130,-465.00311008,0.00024075,2]
[341883732,1731267039141,-708.868534,0.00024147,2]
[341883734,1731267039151,-168.03199,0.00024224,2]
[341883736,1731267039162,-3089.18425226,0.00024545,2]
[341883738,1731267039173,-1336.5724319,0.00024545,2]
[341883740,1731267039184,-1000.0,0.00024557,2]
[341883742,1731267039194,-1535.30357136,0.00024557,2]
[341883744,1731267039205,-164.713426,0.0002462,2]
[341883746,1731267039215,-389.94790583,0.00024638,2]
[341883749,1731267039226,-1535.30357135,0.00024643,2]
[341883751,1731267039236,-157.05,0.00024647,2]
[341883753,1731267039246,-639.41,0.00024647,3]
[341883755,1731267039257,-319.7,0.00024647,3]
[341883757,1731267039267,-159.85,0.00024647,3]
[341883759,1731267039278,-479.58,0.00024647,3]
[341883761,1731267039289,-500.0,0.00024657,2]
[341883764,1731267039299,-505.65210609,0.00024657,2]
[341883766,1731267039310,-500.0,0.00024657,2]
[341883768,1731267039320,-500.0,0.00024657,2]
[341883770,1731267039331,-251.34457677,0.00024657,2]
[341883772,1731267039341,-508.87598685,0.00024657,2]
[341883774,1731267039351,-505.57370327,0.00024657,2]
[341883776,1731267039362,-511.85116559,0.00024657,2]
[341883778,1731267039373,-500.0,0.00024657,2]
[341883780,1731267039383,-520.01044981,0.00024657,2]
[341883783,1731267039393,-572.88979023,0.00024657,2]
[341883785,1731267039404,-501.14621164,0.00024657,2]
[341883787,1731267039414,-503.15218794,0.00024657,2]
[341883789,1731267039427,-539.23094554,0.00024657,2]
[341883791,1731267039437,-587.10903577,0.00024657,2]
[341883793,1731267039448,-500.0,0.00024657,2]
[341883796,1731267039458,-500.0,0.00024657,2]
[341883798,1731267039469,-500.0,0.00024657,2]
[341883800,1731267039480,-310.84734331,0.00024657,2]
[341883802,1731267039490,-570.14155393,0.00024657,2]
[341883804,1731267039501,-500.0,0.00024657,2]
[341883806,1731267039511,-500.0,0.00024657,2]
[341883808,1731267039522,-500.0,0.00024657,2]
[341883810,1731267039532,-500.0,0.00024657,2]
[341883813,1731267039543,-500.0,0.00024657,2]
[341883815,1731267039554,-500.0,0.00024657,2]
[341883817,1731267039565,-500.0,0.00024657,2]
[341883819,1731267039575,-500.0,0.00024657,2]
[341883821,1731267039586,-500.0,0.00024657,2]
[341883823,1731267039596,-500.0,0.00024657,2]
[341883826,1731267039607,-500.0,0.00024657,2]
[341883828,1731267039619,-500.0,0.00024657,2]
[341883830,1731267039630,-500.0,0.00024657,2]
[341883832,1731267039640,-500.0,0.00024657,2]
[341883834,1731267039651,-500.0,0.00024657,2]
[341883836,1731267039660,-504.37206655,0.00024657,2]
[341883838,1731267039672,-500.0,0.00024657,2]
[341883840,1731267039682,-497.22879591,0.00024657,2]
[341883842,1731267039691,-251.99491138,0.00024657,2]
[341883864,1731267039879,-500.0,0.00024657,2]
[341883866,1731267039895,-500.0,0.00024657,2]
[341883868,1731267039904,-500.0,0.00024657,2]
[341883870,1731267039915,-502.17867385,0.00024657,2]
[341883872,1731267039928,-500.0,0.00024657,2]
[341883874,1731267039937,-500.0,0.00024657,2]
[341883876,1731267039947,-502.21225408,0.00024657,2]
[341883879,1731267039956,-500.0,0.00024657,2]
[341883881,1731267039966,-291.19995928,0.00024657,2]
[341883882,1731267039976,-280.82824512,0.00024657,2]
[341883884,1731267039986,-500.0,0.00024657,2]
[341883887,1731267039996,-500.0,0.00024657,2]
[341883889,1731267040006,-500.0,0.00024657,2]
[341883890,1731267040017,-504.39942117,0.00024657,2]
[341883893,1731267040030,-502.68879957,0.00024657,2]
[341883895,1731267040039,-500.0,0.00024657,2]
[341883897,1731267040050,-508.72536043,0.00024657,2]
[341883898,1731267040059,-500.0,0.00024657,2]
[341883900,1731267040068,-297.61403572,0.00024657,2]
[341883903,1731267040078,-343.24506864,0.00024657,2]
[341883905,1731267040087,-500.0,0.00024657,2]
[341883906,1731267040096,-503.63596924,0.00024657,2]
[341883908,1731267040106,-500.0,0.00024657,2]
[341883910,1731267040116,-500.0,0.00024657,2]
[341883913,1731267040131,-500.0,0.00024657,2]
[341883914,1731267040140,-500.0,0.00024657,2]
[341883917,1731267040150,-500.0,0.00024657,2]
[341883919,1731267040160,-500.0,0.00024657,2]
[341883921,1731267040170,-500.0,0.00024657,2]
[341883922,1731267040184,-525.97,0.00024657,2]
[341883927,1731267040194,-500.0,0.00024657,2]
[341883931,1731267040207,-500.0,0.00024657,2]
[341883934,1731267040216,-500.0,0.00024657,2]
[341883935,1731267040226,-500.0,0.00024657,2]
[341883938,1731267040236,-500.0,0.00024657,2]
[341883939,1731267040245,-500.0,0.00024657,2]
[341883941,1731267040256,-500.0,0.00024657,2]
[341883944,1731267040266,-500.0,0.00024657,2]
[341883945,1731267040275,-500.0,0.00024657,2]
[341883948,1731267040285,-500.0,0.00024657,2]
[341883949,1731267040295,-500.0,0.00024657,2]
[341883951,1731267040304,-500.0,0.00024657,2]
[341883953,1731267040314,-500.0,0.00024657,2]
[341883955,1731267040323,-500.0,0.00024657,2]
[341883958,1731267040333,-500.0,0.00024657,2]
[341883960,1731267040342,-500.0,0.00024657,2]
[341883962,1731267040352,-500.0,0.00024657,2]
[341883964,1731267040360,-500.0,0.00024657,2]
[341883965,1731267040369,-506.23719266,0.00024657,2]
[341883968,1731267040379,-500.0,0.00024657,2]
[341883970,1731267040389,-500.0,0.00024657,2]
[341883972,1731267040399,-501.67287588,0.00024657,2]
[341883974,1731267040408,-500.0,0.00024657,2]
[341883976,1731267040417,-500.0,0.00024657,2]
[341883978,1731267040432,-384.6244899,0.00024657,2]
[341883980,1731267040442,-738.02,0.00024657,2]
[341883982,1731267040452,-500.0,0.00024657,2]
[341883984,1731267040461,-501.34584197,0.00024657,2]
[341883986,1731267040471,-519.24888867,0.00024657,2]
[341883988,1731267040480,-503.18849871,0.00024657,2]
[341883989,1731267040489,-500.0,0.00024657,2]
[341883991,1731267040498,-500.0,0.00024657,2]
[341883993,1731267040507,-161.1951441,0.00024657,2]
[341883995,1731267040517,-629.6,0.00024657,2]
[341883997,1731267040526,-1516.22,0.00024657,2]
[341883999,1731267040535,-500.0,0.00024657,2]
[341884001,1731267040544,-500.0,0.00024657,2]
[341884003,1731267040554,-500.0,0.00024657,2]
[341884005,1731267040564,-500.0,0.00024657,2]
[341884007,1731267040574,-500.0,0.00024657,2]
[341884009,1731267040584,-357.93924441,0.00024657,2]
[341884011,1731267040593,-500.0,0.00024657,2]
[341884013,1731267040603,-500.0,0.00024657,2]
[341884015,1731267040612,-500.0,0.00024657,2]
[341884017,1731267040621,-500.0,0.00024657,2]
[341884019,1731267040631,-563.53,0.00024657,2]
[341884021,1731267040640,-503.8412065,0.00024657,2]
[341884023,1731267040649,-666.35,0.00024657,2]
[341884025,1731267040658,-500.0,0.00024657,2]
[341884027,1731267040668,-500.0,0.00024657,2]
[341884029,1731267040682,-500.0,0.00024657,2]
[341884031,1731267040692,-500.0,0.00024657,2]
[341884033,1731267040701,-831.86,0.00024657,2]
[341884035,1731267040711,-500.0,0.00024657,2]
[341884037,1731267040720,-1751.13,0.00024657,2]
[341884039,1731267040729,-500.0,0.00024657,2]
[341884041,1731267040738,-500.0,0.00024657,2]
[341884043,1731267040747,-504.29,0.00024657,2]
[341884045,1731267040757,-500.0,0.00024657,2]
[341884047,1731267040766,-500.0,0.00024657,2]
[341884049,1731267040775,-500.0,0.00024657,2]
[341884051,1731267040784,-500.0,0.00024657,2]
[341884053,1731267040793,-500.0,0.00024657,2]
[341884055,1731267040803,-500.0,0.00024657,2]
[341884057,1731267040812,-500.0,0.00024657,2]
[341884059,1731267040821,-1220.68,0.00024657,2]
[341884061,1731267040830,-500.0,0.00024657,2]
[341884063,1731267040839,-500.0,0.00024657,2]
[341884065,1731267040848,-500.0,0.00024657,2]
[341884067,1731267040857,-543.75677174,0.00024657,2]
[341884069,1731267040867,-500.0,0.00024657,2]
[341884071,1731267040876,-500.0,0.00024657,2]
[341884073,1731267040885,-500.0,0.00024657,2]
[341884075,1731267040894,-500.0,0.00024657,2]
[341884077,1731267040903,-500.0,0.00024657,2]
[341884079,1731267040912,-500.0,0.00024657,2]
[341884081,1731267040923,-500.0,0.00024657,2]
[341884083,1731267040932,-500.0,0.00024657,2]
[341884085,1731267040941,-500.0,0.00024657,2]
[341884087,1731267040950,-500.0,0.00024657,2]
[341884089,1731267040959,-775.0,0.00024657,2]
[341884091,1731267040969,-503.02914835,0.00024657,2]
[341884093,1731267040978,-500.0,0.00024657,2]
[341884095,1731267040988,-500.0,0.00024657,2]
[341884097,1731267040998,-641.16,0.00024657,2]
[341884099,1731267041007,-500.0,0.00024657,2]
[341884101,1731267041017,-500.0,0.00024657,2]
[341884103,1731267041026,-500.0,0.00024657,2]
[341884105,1731267041035,-500.0,0.00024657,2]
[341884107,1731267041045,-500.0,0.00024657,2]
[341884109,1731267041054,-500.0,0.00024657,2]
[341884111,1731267041063,-520.55366898,0.00024657,2]
[341884113,1731267041073,-500.0,0.00024657,2]
[341884115,1731267041083,-500.0,0.00024657,2]
[341884117,1731267041092,-500.0,0.00024657,2]
[341884119,1731267041101,-521.90715971,0.00024657,2]
[341884121,1731267041110,-500.0,0.00024657,2]
[341884123,1731267041120,-500.0,0.00024657,2]
[341884125,1731267041134,-500.0,0.00024657,2]
[341884127,1731267041143,-500.0,0.00024657,2]
[341884129,1731267041152,-1000.0,0.00024657,2]
[341884131,1731267041162,-500.0,0.00024657,2]
[341884133,1731267041173,-500.0,0.00024657,2]
[341884135,1731267041185,-503.87536501,0.00024657,2]
[341884137,1731267041194,-500.0,0.00024657,2]
[341884139,1731267041205,-2198.96,0.00024657,2]
[341884141,1731267041216,-500.0,0.00024657,2]
[341884143,1731267041225,-522.80610124,0.00024657,2]
[341884145,1731267041234,-836.09,0.00024657,2]
[341884147,1731267041243,-511.90647235,0.00024657,2]
[341884148,1731267041252,-503.5312384,0.00024657,2]
[341884149,1731267041261,-500.0,0.00024657,2]
[341884150,1731267041270,-500.0,0.00024657,2]
[341884151,1731267041279,-500.0,0.00024657,2]
[341884153,1731267041288,-2086.67,0.00024657,2]
[341884155,1731267041298,-500.0,0.00024657,2]
[341884157,1731267041307,-500.0,0.00024657,2]
[341884159,1731267041317,-500.0,0.00024657,2]
[341884161,1731267041326,-839.83,0.00024657,2]
[341884163,1731267041335,-513.4950478,0.00024657,2]
[341884165,1731267041344,-500.0,0.00024657,2]
[341884167,1731267041353,-500.0,0.00024657,2]
[341884169,1731267041363,-500.0,0.00024657,2]
[341884171,1731267041371,-500.0,0.00024657,2]
[341884173,1731267041380,-500.0,0.00024657,2]
[341884175,1731267041390,-500.0,0.00024657,2]
[341884177,1731267041400,-573.5697551,0.00024657,2]
[341884179,1731267041410,-500.0,0.00024657,2]
[341884181,1731267041419,-1127.3,0.00024657,2]
[341884183,1731267041431,-2704.01,0.00024657,2]
[341884185,1731267041441,-500.0,0.00024657,2]
[341884187,1731267041450,-500.0,0.00024657,2]
[341884189,1731267041459,-500.0,0.00024657,2]
[341884191,1731267041469,-500.0,0.00024657,2]
[341884193,1731267041478,-500.0,0.00024657,2]
[341884195,1731267041488,-500.0,0.00024657,2]
[341884197,1731267041498,-500.0,0.00024657,2]
[341884199,1731267041507,-500.0,0.00024657,2]
[341884201,1731267041517,-965.25,0.00024657,2]
[341884203,1731267041526,-500.0,0.00024657,2]
[341884205,1731267041536,-500.0,0.00024657,2]
[341884207,1731267041545,-508.65226021,0.00024657,2]
[341884209,1731267041554,-241.67489822,0.00024657,2]
[341884211,1731267041564,-735.22,0.00024657,2]
[341884213,1731267041573,-3331.53,0.00024657,2]
[341884215,1731267041582,-500.0,0.00024657,2]
[341884217,1731267041592,-500.0,0.00024657,2]
[341884219,1731267041601,-500.0,0.00024657,2]
[341884221,1731267041610,-500.0,0.00024657,2]
[341884224,1731267041620,-500.0,0.00024657,2]
[341884225,1731267041629,-500.0,0.00024657,2]
[341884227,1731267041638,-570.02,0.00024657,2]
[341884230,1731267041648,-500.0,0.00024657,2]
[341884232,1731267041657,-500.0,0.00024657,2]
[341884234,1731267041666,-4792.36,0.00024657,2]
[341884236,1731267041678,-500.0,0.00024657,2]
[341884238,1731267041688,-500.0,0.00024657,2]
[341884240,1731267041697,-500.0,0.00024657,2]
[341884242,1731267041706,-349.48810005,0.00024657,2]
[341884244,1731267041715,-500.0,0.00024657,2]
[341884246,1731267041724,-794.69,0.00024657,2]
[341884248,1731267041733,-531.04,0.00024657,2]
[341884250,1731267041743,-767.86,0.00024657,2]
[341884252,1731267041752,-10930.64,0.00024657,2]
[341884254,1731267041761,-584.97612012,0.00024657,2]
[341884256,1731267041770,-500.0,0.00024657,2]
[341884258,1731267041779,-571.42,0.00024657,2]
[341884260,1731267041788,-500.0,0.00024657,2]
[341884262,1731267041797,-500.0,0.00024657,2]
[341884264,1731267041807,-500.0,0.00024657,2]
[341884266,1731267041816,-500.0,0.00024657,2]
[341884268,1731267041826,-500.0,0.00024657,2]
[341884270,1731267041835,-500.0,0.00024657,2]
[341884272,1731267041844,-500.0,0.00024657,2]
[341884274,1731267041853,-500.0,0.00024657,2]
[341884276,1731267041862,-500.0,0.00024657,2]
[341884278,1731267041871,-1115.55,0.00024657,2]
[341884280,1731267041881,-500.0,0.00024657,2]
[341884282,1731267041890,-500.0,0.00024657,2]
[341884284,1731267041899,-500.0,0.00024657,2]
[341884286,1731267041909,-500.0,0.00024657,2]
[341884288,1731267041918,-500.0,0.00024657,2]
[341884290,1731267041929,-500.0,0.00024657,2]
[341884292,1731267041938,-500.0,0.00024657,2]
[341884294,1731267041947,-1040.83,0.00024657,2]
[341884296,1731267041956,-500.0,0.00024657,2]
[341884298,1731267041965,-500.0,0.00024657,2]
[341884300,1731267041974,-510.86326887,0.00024657,2]
[341884302,1731267041983,-500.0,0.00024657,2]
[341884304,1731267041992,-500.0,0.00024673,2]
[341884306,1731267042001,-500.0,0.00024673,2]
[341884308,1731267042011,-500.0,0.00024673,2]
[341884310,1731267042020,-500.0,0.00024673,2]
[341884312,1731267042030,-1535.30357135,0.00024729,2]
[341884314,1731267042039,-1535.30357135,0.00024814,2]
[341884316,1731267042049,-177.93,0.000249,7]
[341884318,1731267042059,-1535.30357135,0.000249,2]
[341884320,1731267042068,-500.0,0.00024925,2]
[341884321,1731267042077,-540.76360326,0.00024925,2]
[341884322,1731267042086,-500.0,0.00024925,2]
[341884323,1731267042095,-607.27358393,0.00024925,2]
[341884324,1731267042105,-500.0,0.00024925,2]
[341884325,1731267042117,-500.0,0.00024925,2]
[341884326,1731267042126,-500.0,0.00024925,2]
[341884327,1731267042136,-500.0,0.00024925,2]
[341884328,1731267042145,-500.0,0.00024925,2]
[341884329,1731267042154,-270.77822193,0.00024925,2]
[341884330,1731267042163,-500.0,0.00024925,2]
[341884331,1731267042175,-500.0,0.00024925,2]
[341884332,1731267042184,-500.0,0.00024925,2]
[341884333,1731267042193,-498.58638504,0.00024925,2]
[341884334,1731267042204,-500.0,0.00024925,2]
[341884335,1731267042214,-500.0,0.00024925,2]
[341884336,1731267042223,-500.0,0.00024925,2]
[341884337,1731267042232,-500.0,0.00024925,2]
[341884338,1731267042241,-500.0,0.00024925,2]
[341884339,1731267042250,-500.0,0.00024925,2]
[341884340,1731267042259,-500.0,0.00024925,2]
[341884341,1731267042268,-500.0,0.00024925,2]
[341884342,1731267042277,-500.0,0.00024925,2]
[341884343,1731267042286,-500.0,0.00024925,2]
[341884345,1731267042295,-500.0,0.00024925,2]
[341884346,1731267042304,-500.0,0.00024925,2]
[341884348,1731267042314,-500.0,0.00024925,2]
[341884350,1731267042324,-500.0,0.00024925,2]
[341884351,1731267042333,-500.0,0.00024925,2]
[341884352,1731267042342,-500.0,0.00024925,2]
[341884353,1731267042351,-500.0,0.00024925,2]
[341884354,1731267042360,-500.0,0.00024925,2]
[341884355,1731267042369,-500.0,0.00024925,2]
[341884356,1731267042379,-500.0,0.00024925,2]
[341884357,1731267042388,-500.0,0.00024925,2]
[341884358,1731267042398,-500.0,0.00024925,2]
[341884359,1731267042407,-500.0,0.00024925,2]
[341884360,1731267042416,-500.0,0.00024927,2]
[341884361,1731267042428,-500.0,0.00024927,2]
[341884362,1731267042437,-500.0,0.00024927,2]
[341884363,1731267042447,-500.0,0.0002493,2]
[341884364,1731267042456,-500.0,0.0002493,2]
[341884365,1731267042465,-500.0,0.0002493,2]
[341884366,1731267042475,-500.0,0.0002493,2]
[341884367,1731267042485,-500.0,0.0002493,2]
[341884368,1731267042494,-500.0,0.0002493,2]
[341884369,1731267042503,-500.0,0.00024931,2]
[341884370,1731267042513,-500.0,0.00024931,2]
[341884371,1731267042523,-500.0,0.00024931,2]
[341884372,1731267042532,-500.0,0.00024931,2]
[341884373,1731267042542,-500.0,0.00024931,2]
[341884374,1731267042551,-500.0,0.00024931,2]
[341884375,1731267042561,-480.13543709,0.00024931,2]
[341884376,1731267042572,-500.0,0.00024931,2]
[341884377,1731267042582,-500.0,0.00024931,2]
[341884378,1731267042591,-500.0,0.00024931,2]
[341884379,1731267042600,-500.0,0.00024931,2]
[341884380,1731267042610,-500.0,0.00024931,2]
[341884381,1731267042619,-500.0,0.00024931,2]
[341884382,1731267042629,-500.0,0.00024931,2]
[341884383,1731267042638,-500.0,0.00024931,2]
[341884384,1731267042647,-500.0,0.00024931,2]
[341884385,1731267042657,-500.0,0.00024931,2]
[341884387,1731267042666,-500.0,0.00024931,2]
[341884389,1731267042678,-500.0,0.00024931,2]
[341884391,1731267042687,-500.0,0.00024931,2]
[341884393,1731267042696,-456.75363819,0.00024931,2]
[341884395,1731267042706,-525.97,0.00024931,2]
[341884397,1731267042715,-500.0,0.00024931,2]
[341884398,1731267042724,-500.0,0.00024931,2]
[341884400,1731267042733,-500.0,0.00024931,2]
[341884401,1731267042743,-500.0,0.00024931,2]
[341884403,1731267042752,-500.0,0.00024931,2]
[341884404,1731267042762,-500.0,0.00024931,2]
[341884405,1731267042773,-500.0,0.00024931,2]
[341884406,1731267042782,-500.0,0.00024931,2]
[341884408,1731267042791,-500.0,0.00024931,2]
[341884410,1731267042800,-500.0,0.00024931,2]
[341884412,1731267042810,-500.0,0.00024931,2]
[341884413,1731267042819,-500.0,0.00024931,2]
[341884414,1731267042828,-251.34937098,0.00024931,2]
[341884415,1731267042838,-738.02,0.00024931,2]
[341884416,1731267042847,-500.0,0.00024931,2]
[341884417,1731267042856,-500.0,0.00024931,2]
[341884418,1731267042865,-1516.22,0.00024931,2]
[341884419,1731267042875,-500.0,0.00024931,2]
[341884420,1731267042884,-500.0,0.00024931,2]
[341884421,1731267042894,-500.0,0.00024931,2]
[341884422,1731267042903,-500.0,0.00024931,2]
[341884424,1731267042912,-500.0,0.00024931,2]
[341884426,1731267042923,-666.35,0.00024931,2]
[341884428,1731267042931,-500.0,0.00024931,2]
[341884429,1731267042941,-500.0,0.00024931,2]
[341884431,1731267042950,-831.86,0.00024931,2]
[341884432,1731267042960,-453.87898042,0.00024931,2]
[341884433,1731267042970,-1751.13,0.00024931,2]
[341884434,1731267042979,-500.0,0.00024931,2]
[341884435,1731267042989,-500.0,0.00024931,2]
[341884437,1731267042999,-500.0,0.00024931,2]
[341884439,1731267043008,-500.0,0.00024931,2]
[341884453,1731267043115,-500.0,0.00024931,2]
[341884455,1731267043144,-500.0,0.00024931,2]
[341884457,1731267043153,-500.0,0.00024931,2]
[341884459,1731267043163,-500.0,0.00024931,2]
[341884461,1731267043174,-1220.68,0.00024931,2]
[341884462,1731267043184,-500.0,0.00024931,2]
[341884463,1731267043193,-500.0,0.00024931,2]
[341884464,1731267043203,-408.54176126,0.00024931,2]
[341884465,1731267043212,-500.0,0.00024931,2]
[341884466,1731267043221,-473.58972281,0.00024931,2]
[341884468,1731267043231,-240.71928159,0.00024931,2]
[341884469,1731267043240,-500.0,0.00024931,2]
[341884470,1731267043249,-247.40756212,0.00024931,2]
[341884471,1731267043258,-775.0,0.00024931,2]
[341884472,1731267043268,-500.0,0.00024931,2]
[341884473,1731267043277,-641.16,0.00024931,2]
[341884474,1731267043286,-500.0,0.00024931,2]
[341884475,1731267043296,-500.0,0.00024931,2]
[341884476,1731267043306,-500.0,0.00024931,2]
[341884477,1731267043315,-500.0,0.00024931,2]
[341884478,1731267043325,-500.0,0.00024931,2]
[341884479,1731267043334,-500.0,0.00024931,2]
[341884480,1731267043344,-500.0,0.00024931,2]
[341884481,1731267043353,-1000.0,0.00024931,2]
[341884482,1731267043363,-280.89845815,0.00024931,2]
[341884483,1731267043374,-500.0,0.00024931,2]
[341884484,1731267043383,-2198.96,0.00024931,2]
[341884485,1731267043394,-836.09,0.00024931,2]
[341884486,1731267043403,-500.0,0.00024931,2]